[Event "*** Titled Tuesday Blitz"]
[Site "Chess.com"]
[Date "2020.12.29"]
[Round "3"]
[White "Anna_ChessMate"]
[Black "atalz0"]
[Result "1-0"]
[WhiteElo "2553"]
[BlackElo "2363"]
[TimeControl "180+1"]
[EndTime "10:27:56 PST"]
[Termination "Anna_ChessMate won on time"]

1. d4 {[%clk 0:03:00.9]} 1... d5 {[%clk 0:02:58.6]} 2. c4 {[%clk 0:03:01.4]}
2... e6 {[%clk 0:02:59.2]} 3. Nf3 {[%clk 0:03:01.7]} 3... a6 {[%clk 0:02:59.5]}
4. cxd5 {[%clk 0:03:00.3]} 4... exd5 {[%clk 0:03:00.4]} 5. Nc3 {[%clk
0:03:01.1]} 5... h6 {[%clk 0:03:00]} 6. Bf4 {[%clk 0:03:00.4]} 6... Nf6 {[%clk
0:02:59.8]} 7. e3 {[%clk 0:03:00.7]} 7... Bd6 {[%clk 0:03:00.4]} 8. Bxd6 {[%clk
0:02:59.9]} 8... Qxd6 {[%clk 0:03:01.3]} 9. Bd3 {[%clk 0:03:00.4]} 9... O-O
{[%clk 0:03:00.9]} 10. h3 {[%clk 0:03:00.9]} 10... Be6 {[%clk 0:02:49.6]} 11.
O-O {[%clk 0:03:01]} 11... Nbd7 {[%clk 0:02:50.2]} 12. Rc1 {[%clk 0:03:00.3]}
12... Rfd8 {[%clk 0:02:50.2]} 13. Qc2 {[%clk 0:02:59.5]} 13... Rac8 {[%clk
0:02:49.2]} 14. Rfd1 {[%clk 0:02:58.4]} 14... c5 {[%clk 0:02:39.6]} 15. dxc5
{[%clk 0:02:59.3]} 15... Nxc5 {[%clk 0:02:39.4]} 16. Qe2 {[%clk 0:02:44.6]}
16... Qb6 {[%clk 0:02:25.7]} 17. Bb1 {[%clk 0:02:40.3]} 17... Nce4 {[%clk
0:02:22.4]} 18. Nxe4 {[%clk 0:02:36.1]} 18... dxe4 {[%clk 0:02:20.8]} 19. Nd4
{[%clk 0:02:35.8]} 19... Rxc1 {[%clk 0:02:04.2]} 20. Rxc1 {[%clk 0:02:34.1]}
20... Rc8 {[%clk 0:02:04.2]} 21. Rxc8+ {[%clk 0:02:29.9]} 21... Bxc8 {[%clk
0:02:05.1]} 22. Qc4 {[%clk 0:02:29.7]} 22... Bd7 {[%clk 0:02:04.9]} 23. b4
{[%clk 0:02:23.8]} 23... Qd6 {[%clk 0:02:01]} 24. a3 {[%clk 0:02:23]} 24... g6
{[%clk 0:01:53.2]} 25. Ba2 {[%clk 0:02:22.3]} 25... Be8 {[%clk 0:01:44.8]} 26.
Qc8 {[%clk 0:02:19]} 26... Qd7 {[%clk 0:01:43.4]} 27. Qb8 {[%clk 0:02:17.4]}
27... Kg7 {[%clk 0:01:35.2]} 28. Qe5 {[%clk 0:02:11.2]} 28... Qa4 {[%clk
0:01:32.8]} 29. Bd5 {[%clk 0:01:30.7]} 29... Qxa3 {[%clk 0:01:27.4]} 30. g4
{[%clk 0:01:14.5]} 30... Qc1+ {[%clk 0:00:22.4]} 31. Kg2 {[%clk 0:01:14.2]}
31... Qc8 {[%clk 0:00:22.9]} 32. Bxe4 {[%clk 0:01:05.5]} 32... Bd7 {[%clk
0:00:14.4]} 33. f4 {[%clk 0:01:03]} 33... Bxg4 {[%clk 0:00:10.1]} 34. hxg4
{[%clk 0:00:59.6]} 34... Qxg4+ {[%clk 0:00:11]} 35. Kf2 {[%clk 0:01:00.5]} 35...
Qh4+ {[%clk 0:00:11.1]} 36. Ke2 {[%clk 0:01:00.5]} 36... Kh7 {[%clk 0:00:09]}
37. Nf3 {[%clk 0:00:57.2]} 1-0

[Event "*** Titled Tuesday Blitz"]
[Site "Chess.com"]
[Date "2020.12.29"]
[Round "3"]
[White "Everyfishknows"]
[Black "nitpicker"]
[Result "0-1"]
[WhiteElo "2399"]
[BlackElo "2252"]
[TimeControl "180+1"]
[EndTime "10:27:56 PST"]
[Termination "nitpicker won on time"]

1. d4 {[%clk 0:02:48.9]} 1... Nf6 {[%clk 0:02:58.7]} 2. c4 {[%clk 0:02:45.5]}
2... e6 {[%clk 0:02:58.2]} 3. Nc3 {[%clk 0:02:44.6]} 3... Bb4 {[%clk 0:02:57.4]}
4. Qc2 {[%clk 0:02:41.4]} 4... c5 {[%clk 0:02:56.6]} 5. Nf3 {[%clk 0:02:37.4]}
5... cxd4 {[%clk 0:02:54.2]} 6. Nxd4 {[%clk 0:02:37.2]} 6... a6 {[%clk
0:02:54.4]} 7. g3 {[%clk 0:02:36.4]} 7... Qc7 {[%clk 0:02:53.4]} 8. Qb3 {[%clk
0:02:15.4]} 8... Bc5 {[%clk 0:02:51.5]} 9. Qd1 {[%clk 0:02:05.7]} 9... Ba7
{[%clk 0:02:37.4]} 10. Qd3 {[%clk 0:02:00.1]} 10... d6 {[%clk 0:02:33.2]} 11.
Bg2 {[%clk 0:01:59.3]} 11... Nbd7 {[%clk 0:02:33.5]} 12. O-O {[%clk 0:01:40.3]}
12... Ne5 {[%clk 0:02:31.9]} 13. Qd1 {[%clk 0:01:34.7]} 13... Nxc4 {[%clk
0:02:28.6]} 14. b3 {[%clk 0:01:24.6]} 14... Ne5 {[%clk 0:02:18.7]} 15. Bb2
{[%clk 0:01:24.1]} 15... O-O {[%clk 0:02:16.3]} 16. Rc1 {[%clk 0:01:23.7]} 16...
Qe7 {[%clk 0:02:10.6]} 17. Ba3 {[%clk 0:01:14.5]} 17... Bc5 {[%clk 0:02:09.1]}
18. Bxc5 {[%clk 0:01:09.6]} 18... dxc5 {[%clk 0:02:08.7]} 19. Nf3 {[%clk
0:01:09.8]} 19... Nc6 {[%clk 0:02:05.7]} 20. Na4 {[%clk 0:01:03.4]} 20... Nd7
{[%clk 0:02:00.6]} 21. Qc2 {[%clk 0:00:56.8]} 21... b6 {[%clk 0:01:49.6]} 22. h4
{[%clk 0:00:50.2]} 22... Bb7 {[%clk 0:01:49.2]} 23. Rfd1 {[%clk 0:00:49.2]}
23... Nb4 {[%clk 0:01:34.7]} 24. Qd2 {[%clk 0:00:49.1]} 24... Rfd8 {[%clk
0:01:28.3]} 25. a3 {[%clk 0:00:48.7]} 25... Nc6 {[%clk 0:01:27]} 26. Qe3 {[%clk
0:00:39.5]} 26... Rac8 {[%clk 0:01:23.4]} 27. h5 {[%clk 0:00:34.4]} 27... h6
{[%clk 0:01:22.8]} 28. Rd2 {[%clk 0:00:29.6]} 28... Na5 {[%clk 0:01:02.5]} 29.
Nh2 {[%clk 0:00:12]} 29... Bxg2 {[%clk 0:01:01.8]} 30. Kxg2 {[%clk 0:00:12.9]}
30... Nc6 {[%clk 0:00:49.6]} 31. Ng4 {[%clk 0:00:12.4]} 31... f5 {[%clk
0:00:45.9]} 32. Nh2 {[%clk 0:00:10.9]} 32... Nd4 {[%clk 0:00:43.1]} 33. Nf3
{[%clk 0:00:09.8]} 33... e5 {[%clk 0:00:42]} 34. Nxd4 {[%clk 0:00:09.3]} 34...
cxd4 {[%clk 0:00:40.6]} 35. Rxd4 {[%clk 0:00:03.7]} 35... Qxa3 {[%clk
0:00:40.4]} 0-1

[Event "*** Titled Tuesday Blitz"]
[Site "Chess.com"]
[Date "2020.12.29"]
[Round "3"]
[White "jens1102"]
[Black "FishThatRoared"]
[Result "1-0"]
[WhiteElo "2376"]
[BlackElo "2103"]
[TimeControl "180+1"]
[EndTime "10:27:57 PST"]
[Termination "jens1102 won by resignation"]

1. Nf3 {[%clk 0:03:00.9]} 1... b6 {[%clk 0:02:57.7]} 2. c4 {[%clk 0:03:01.1]}
2... Bb7 {[%clk 0:02:57.9]} 3. Nc3 {[%clk 0:03:01.8]} 3... f5 {[%clk 0:02:54.9]}
4. d4 {[%clk 0:03:01.5]} 4... e6 {[%clk 0:02:54.6]} 5. d5 {[%clk 0:03:01]} 5...
Nf6 {[%clk 0:02:43.9]} 6. dxe6 {[%clk 0:02:51.7]} 6... Bb4 {[%clk 0:02:43.3]} 7.
exd7+ {[%clk 0:02:43.1]} 7... Nbxd7 {[%clk 0:02:41.8]} 8. Bd2 {[%clk 0:02:41.2]}
8... O-O {[%clk 0:02:35.2]} 9. e3 {[%clk 0:02:41.5]} 9... Qe7 {[%clk 0:02:15.5]}
10. Be2 {[%clk 0:02:38.5]} 10... Rad8 {[%clk 0:02:11.2]} 11. O-O {[%clk
0:02:25.2]} 11... Ne5 {[%clk 0:01:40.6]} 12. Nd4 {[%clk 0:02:11.8]} 12... g6
{[%clk 0:01:14.5]} 13. Qe1 {[%clk 0:01:56.4]} 13... Qf7 {[%clk 0:01:07]} 14. a3
{[%clk 0:01:53.8]} 14... Bxc3 {[%clk 0:00:59.9]} 15. Bxc3 {[%clk 0:01:54.7]}
15... Nxc4 {[%clk 0:00:58.4]} 16. Nf3 {[%clk 0:01:36.3]} 16... Ne4 {[%clk
0:00:53.5]} 17. Rd1 {[%clk 0:01:28.5]} 17... Nxc3 {[%clk 0:00:47.9]} 18. Qxc3
{[%clk 0:01:26.8]} 18... Nd6 {[%clk 0:00:44.9]} 19. Rc1 {[%clk 0:01:02.8]} 19...
c5 {[%clk 0:00:44.2]} 20. Rfd1 {[%clk 0:01:02.1]} 20... Ne4 {[%clk 0:00:33.7]}
21. Qc4 {[%clk 0:01:00.3]} 21... Bd5 {[%clk 0:00:24.5]} 22. Qa4 {[%clk 0:00:55]}
22... Kh8 {[%clk 0:00:18.9]} 23. b4 {[%clk 0:00:44.5]} 23... c4 {[%clk
0:00:16.1]} 24. Ne5 {[%clk 0:00:39.5]} 24... Qe6 {[%clk 0:00:14.6]} 25. Nxc4
{[%clk 0:00:39.6]} 25... Bxc4 {[%clk 0:00:12.3]} 26. Bxc4 {[%clk 0:00:40.3]}
26... Nc3 {[%clk 0:00:06.7]} 27. Rxc3 {[%clk 0:00:33.2]} 27... Rxd1+ {[%clk
0:00:03]} 28. Qxd1 {[%clk 0:00:34.1]} 28... Qe5 {[%clk 0:00:03.5]} 29. Qd4
{[%clk 0:00:33.8]} 29... Qxd4 {[%clk 0:00:03.2]} 30. exd4 {[%clk 0:00:34.7]}
30... Re8 {[%clk 0:00:02.7]} 31. Kf1 {[%clk 0:00:33.9]} 31... Kg7 {[%clk
0:00:02.9]} 32. Re3 {[%clk 0:00:33.4]} 32... Re7 {[%clk 0:00:03.8]} 33. Rxe7+
{[%clk 0:00:33.4]} 1-0

[Event "*** Titled Tuesday Blitz"]
[Site "Chess.com"]
[Date "2020.12.29"]
[Round "3"]
[White "Fortitudine"]
[Black "mbachez"]
[Result "0-1"]
[WhiteElo "2360"]
[BlackElo "2543"]
[TimeControl "180+1"]
[EndTime "10:27:58 PST"]
[Termination "mbachez won on time"]

1. c4 {[%clk 0:03:00.9]} 1... e5 {[%clk 0:02:44.5]} 2. g3 {[%clk 0:02:58.9]}
2... Nf6 {[%clk 0:02:43.9]} 3. Bg2 {[%clk 0:02:58.9]} 3... Bc5 {[%clk
0:02:43.3]} 4. Nc3 {[%clk 0:02:58.7]} 4... O-O {[%clk 0:02:42.6]} 5. Nf3 {[%clk
0:02:58.6]} 5... Re8 {[%clk 0:02:40.9]} 6. O-O {[%clk 0:02:51.5]} 6... d6 {[%clk
0:02:38.4]} 7. d3 {[%clk 0:02:49.9]} 7... c6 {[%clk 0:02:38]} 8. Bg5 {[%clk
0:02:42.6]} 8... h6 {[%clk 0:02:37]} 9. Bxf6 {[%clk 0:02:42.4]} 9... Qxf6 {[%clk
0:02:37.9]} 10. Ne4 {[%clk 0:02:42.8]} 10... Qe7 {[%clk 0:02:37.4]} 11. Nxc5
{[%clk 0:02:42.6]} 11... dxc5 {[%clk 0:02:37]} 12. Nd2 {[%clk 0:02:36.2]} 12...
Nd7 {[%clk 0:02:36.4]} 13. Rb1 {[%clk 0:02:32.3]} 13... Nf8 {[%clk 0:02:34.8]}
14. a3 {[%clk 0:02:32.6]} 14... Bg4 {[%clk 0:02:33.3]} 15. h3 {[%clk 0:02:27.6]}
15... Bh5 {[%clk 0:02:32.8]} 16. b4 {[%clk 0:02:27]} 16... Ne6 {[%clk
0:02:31.5]} 17. Ne4 {[%clk 0:02:16.1]} 17... cxb4 {[%clk 0:02:27.7]} 18. axb4
{[%clk 0:02:09.4]} 18... Nd4 {[%clk 0:02:27.7]} 19. g4 {[%clk 0:02:08.6]} 19...
Bg6 {[%clk 0:02:27.4]} 20. e3 {[%clk 0:02:08.6]} 20... Ne6 {[%clk 0:02:25.5]}
21. Qc2 {[%clk 0:01:40.2]} 21... Red8 {[%clk 0:02:23.3]} 22. Rfd1 {[%clk
0:01:38.7]} 22... Qh4 {[%clk 0:02:15.5]} 23. Qc3 {[%clk 0:01:05.6]} 23... Bxe4
{[%clk 0:02:11.7]} 24. dxe4 {[%clk 0:01:01.5]} 24... f6 {[%clk 0:02:07.8]} 25.
Qe1 {[%clk 0:00:49.9]} 25... Ng5 {[%clk 0:01:56.1]} 26. Kh2 {[%clk 0:00:37.6]}
26... h5 {[%clk 0:01:55]} 27. f4 {[%clk 0:00:29.9]} 27... Qxe1 {[%clk
0:01:54.1]} 28. Rxe1 {[%clk 0:00:30.2]} 28... exf4 {[%clk 0:01:52.8]} 29. exf4
{[%clk 0:00:31.1]} 29... Ne6 {[%clk 0:01:52.8]} 30. f5 {[%clk 0:00:27]} 30...
Nf4 {[%clk 0:01:52.8]} 31. Re3 {[%clk 0:00:19.6]} 31... Rd2 {[%clk 0:01:50.7]}
32. Rg1 {[%clk 0:00:20.1]} 32... h4 {[%clk 0:01:45.6]} 33. Kh1 {[%clk
0:00:19.5]} 33... Rad8 {[%clk 0:01:43.3]} 34. e5 {[%clk 0:00:18.2]} 34... fxe5
{[%clk 0:01:38.1]} 35. Rxe5 {[%clk 0:00:19.1]} 35... R8d3 {[%clk 0:01:35.3]} 36.
Rf1 {[%clk 0:00:06]} 36... Nxg2 {[%clk 0:01:32.6]} 37. f6 {[%clk 0:00:05.1]}
37... Rxh3+ {[%clk 0:01:28.9]} 38. Kg1 {[%clk 0:00:04.8]} 38... gxf6 {[%clk
0:01:22.6]} 39. Rxf6 {[%clk 0:00:05.7]} 39... Re3 {[%clk 0:01:10.9]} 40. Rg5+
{[%clk 0:00:02.8]} 40... Kh7 {[%clk 0:01:10.8]} 0-1

[Event "*** Titled Tuesday Blitz"]
[Site "Chess.com"]
[Date "2020.12.29"]
[Round "3"]
[White "Tagliata"]
[Black "bogcsab"]
[Result "0-1"]
[WhiteElo "2290"]
[BlackElo "1999"]
[TimeControl "180+1"]
[EndTime "10:27:58 PST"]
[Termination "bogcsab won by resignation"]

1. e4 {[%clk 0:03:00.9]} 1... d6 {[%clk 0:02:59.9]} 2. Nc3 {[%clk 0:03:00]} 2...
Nf6 {[%clk 0:03:00]} 3. d4 {[%clk 0:02:59.1]} 3... g6 {[%clk 0:03:00.3]} 4. Be2
{[%clk 0:02:57.3]} 4... Bg7 {[%clk 0:03:00.3]} 5. Be3 {[%clk 0:02:57.4]} 5... c6
{[%clk 0:02:58.3]} 6. g4 {[%clk 0:02:52.1]} 6... b5 {[%clk 0:02:50.3]} 7. g5
{[%clk 0:02:50.5]} 7... Nfd7 {[%clk 0:02:44]} 8. h4 {[%clk 0:02:50.2]} 8... h5
{[%clk 0:02:43]} 9. f4 {[%clk 0:02:44.5]} 9... b4 {[%clk 0:02:37.4]} 10. Nb1
{[%clk 0:02:37.5]} 10... Nb6 {[%clk 0:02:26.3]} 11. Nf3 {[%clk 0:02:36]} 11...
Bg4 {[%clk 0:02:14.6]} 12. Nbd2 {[%clk 0:02:29.5]} 12... N8d7 {[%clk 0:02:12.8]}
13. O-O {[%clk 0:02:20.4]} 13... e5 {[%clk 0:02:12.2]} 14. dxe5 {[%clk
0:02:15.5]} 14... dxe5 {[%clk 0:02:10.7]} 15. f5 {[%clk 0:01:50.6]} 15... gxf5
{[%clk 0:02:09.4]} 16. exf5 {[%clk 0:01:50.1]} 16... Bxf5 {[%clk 0:01:56.4]} 17.
Nxe5 {[%clk 0:01:45.2]} 17... Bxc2 {[%clk 0:01:18.4]} 18. Qxc2 {[%clk
0:01:35.3]} 18... Nxe5 {[%clk 0:01:15.6]} 19. Ne4 {[%clk 0:01:13.6]} 19... Nd5
{[%clk 0:01:12.1]} 20. Bc5 {[%clk 0:01:07.6]} 20... Bf8 {[%clk 0:00:53.8]} 21.
Rad1 {[%clk 0:00:59.8]} 21... Bxc5+ {[%clk 0:00:45.2]} 22. Qxc5 {[%clk
0:00:58.1]} 22... Qb6 {[%clk 0:00:29.1]} 23. Rxd5 {[%clk 0:00:38.2]} 23... cxd5
{[%clk 0:00:24.4]} 24. Bb5+ {[%clk 0:00:38.8]} 24... Kd8 {[%clk 0:00:20.4]} 25.
Qxb6+ {[%clk 0:00:33.6]} 25... axb6 {[%clk 0:00:20.5]} 26. Nf6 {[%clk
0:00:32.4]} 26... d4 {[%clk 0:00:19]} 27. Re1 {[%clk 0:00:30.6]} 27... Nf3+
{[%clk 0:00:18.7]} 28. Kf2 {[%clk 0:00:30.8]} 28... Nxe1 {[%clk 0:00:19.4]} 29.
Kxe1 {[%clk 0:00:31.2]} 29... Rxa2 {[%clk 0:00:20.1]} 30. Bc4 {[%clk 0:00:27]}
30... Rxb2 {[%clk 0:00:19.7]} 31. Bxf7 {[%clk 0:00:27.9]} 31... Rf8 {[%clk
0:00:19.3]} 32. g6 {[%clk 0:00:26.7]} 32... Rxf7 {[%clk 0:00:18.3]} 33. gxf7
{[%clk 0:00:26.9]} 33... Ke7 {[%clk 0:00:18.8]} 0-1

[Event "*** Titled Tuesday Blitz"]
[Site "Chess.com"]
[Date "2020.12.29"]
[Round "3"]
[White "vlad_Sid"]
[Black "area_5"]
[Result "1-0"]
[WhiteElo "2580"]
[BlackElo "2777"]
[TimeControl "180+1"]
[EndTime "10:27:59 PST"]
[Termination "vlad_Sid won by resignation"]

1. c4 {[%clk 0:03:00.9]} 1... Nf6 {[%clk 0:02:58.7]} 2. g3 {[%clk 0:03:01.1]}
2... g6 {[%clk 0:02:57.2]} 3. Bg2 {[%clk 0:03:01.4]} 3... Bg7 {[%clk 0:02:57.7]}
4. Nc3 {[%clk 0:03:02.3]} 4... O-O {[%clk 0:02:57.8]} 5. d3 {[%clk 0:03:03.2]}
5... c5 {[%clk 0:02:55.4]} 6. Nf3 {[%clk 0:03:03.4]} 6... Nc6 {[%clk 0:02:55.1]}
7. O-O {[%clk 0:03:03.9]} 7... a6 {[%clk 0:02:53.4]} 8. a3 {[%clk 0:03:02.6]}
8... Rb8 {[%clk 0:02:53]} 9. Rb1 {[%clk 0:03:03]} 9... b5 {[%clk 0:02:47.7]} 10.
cxb5 {[%clk 0:03:02]} 10... axb5 {[%clk 0:02:48]} 11. b4 {[%clk 0:03:02.6]}
11... cxb4 {[%clk 0:02:34.6]} 12. axb4 {[%clk 0:03:03.5]} 12... e5 {[%clk
0:02:18]} 13. Bg5 {[%clk 0:03:00.7]} 13... d5 {[%clk 0:01:52.6]} 14. Nd2 {[%clk
0:02:58.3]} 14... Be6 {[%clk 0:01:50.2]} 15. Bxf6 {[%clk 0:02:44.9]} 15... Bxf6
{[%clk 0:01:49.2]} 16. e4 {[%clk 0:02:44.9]} 16... dxe4 {[%clk 0:01:42.2]} 17.
dxe4 {[%clk 0:02:39]} 17... Qd4 {[%clk 0:01:09.5]} 18. Nd5 {[%clk 0:02:22.1]}
18... Bxd5 {[%clk 0:01:01.5]} 19. exd5 {[%clk 0:02:23]} 19... Nxb4 {[%clk
0:01:01.5]} 20. Qb3 {[%clk 0:01:15.7]} 20... Nxd5 {[%clk 0:00:49.5]} 21. Ne4
{[%clk 0:01:07.6]} 21... Qc4 {[%clk 0:00:34.9]} 22. Rfd1 {[%clk 0:01:05.1]}
22... Kg7 {[%clk 0:00:24.3]} 23. Rxd5 {[%clk 0:01:02.6]} 23... Qxb3 {[%clk
0:00:24.3]} 24. Rxb3 {[%clk 0:01:03.5]} 24... Rfc8 {[%clk 0:00:24.6]} 25. Nxf6
{[%clk 0:01:02.3]} 25... Rc1+ {[%clk 0:00:22]} 26. Bf1 {[%clk 0:01:02.4]} 26...
Kxf6 {[%clk 0:00:22.2]} 27. Rdxb5 {[%clk 0:01:02.9]} 27... Rxb5 {[%clk
0:00:20.3]} 28. Rxb5 {[%clk 0:01:03.1]} 28... Rc7 {[%clk 0:00:19.4]} 29. Kg2
{[%clk 0:01:03.6]} 29... Re7 {[%clk 0:00:19.5]} 30. Rb6+ {[%clk 0:01:04]} 30...
Kg7 {[%clk 0:00:19.7]} 31. Bc4 {[%clk 0:01:04.5]} 31... Rc7 {[%clk 0:00:18]} 32.
Bd5 {[%clk 0:01:04.7]} 32... Rd7 {[%clk 0:00:18.2]} 33. Bf3 {[%clk 0:01:03.9]}
33... Re7 {[%clk 0:00:18.2]} 34. Rb7 {[%clk 0:01:03.7]} 34... Re8 {[%clk
0:00:17.8]} 35. Bd5 {[%clk 0:01:03.9]} 35... Rf8 {[%clk 0:00:18.1]} 36. Kf3
{[%clk 0:01:04.4]} 36... Kf6 {[%clk 0:00:18.3]} 37. Ke4 {[%clk 0:01:02.1]} 37...
h6 {[%clk 0:00:18]} 38. Rb6+ {[%clk 0:01:01.8]} 38... Kg5 {[%clk 0:00:17.7]} 39.
h4+ {[%clk 0:00:58.1]} 39... Kg4 {[%clk 0:00:17.5]} 40. Kxe5 {[%clk 0:00:58.5]}
40... g5 {[%clk 0:00:15.8]} 41. Rb4+ {[%clk 0:00:57.4]} 41... Kh3 {[%clk
0:00:15.5]} 42. hxg5 {[%clk 0:00:57.3]} 42... hxg5 {[%clk 0:00:16.4]} 43. Kf5
{[%clk 0:00:55.6]} 43... g4 {[%clk 0:00:16.6]} 44. Rxg4 {[%clk 0:00:54.9]} 44...
Rh8 {[%clk 0:00:16.6]} 45. Rh4+ {[%clk 0:00:53.1]} 45... Rxh4 {[%clk 0:00:16]}
46. gxh4 {[%clk 0:00:54]} 46... Kxh4 {[%clk 0:00:16.1]} 47. Bxf7 {[%clk
0:00:54.5]} 1-0

[Event "*** Titled Tuesday Blitz"]
[Site "Chess.com"]
[Date "2020.12.29"]
[Round "3"]
[White "brunomorado"]
[Black "Kazmin_Dmitrij"]
[Result "0-1"]
[WhiteElo "2412"]
[BlackElo "2263"]
[TimeControl "180+1"]
[EndTime "10:28:00 PST"]
[Termination "Kazmin_Dmitrij won on time"]

1. d4 {[%clk 0:02:50.1]} 1... f5 {[%clk 0:02:59.6]} 2. e4 {[%clk 0:02:44.8]}
2... fxe4 {[%clk 0:02:58.6]} 3. Nc3 {[%clk 0:02:44.8]} 3... Nf6 {[%clk
0:02:58.1]} 4. Bg5 {[%clk 0:02:45.1]} 4... Nc6 {[%clk 0:02:57.5]} 5. d5 {[%clk
0:02:45.4]} 5... Ne5 {[%clk 0:02:54.7]} 6. Bxf6 {[%clk 0:02:45]} 6... exf6
{[%clk 0:02:40.6]} 7. Nxe4 {[%clk 0:02:45.9]} 7... f5 {[%clk 0:02:37.6]} 8. Nc3
{[%clk 0:02:46]} 8... Bc5 {[%clk 0:02:34.7]} 9. Nf3 {[%clk 0:02:27.7]} 9... Ng4
{[%clk 0:02:33.4]} 10. Qe2+ {[%clk 0:02:22.8]} 10... Kf7 {[%clk 0:02:19.9]} 11.
O-O-O {[%clk 0:02:13.4]} 11... Re8 {[%clk 0:02:13.8]} 12. Qc4 {[%clk 0:02:09.2]}
12... d6 {[%clk 0:02:09.8]} 13. Qf4 {[%clk 0:00:46.1]} 13... Bxf2 {[%clk
0:02:02.6]} 14. Kb1 {[%clk 0:00:34.2]} 14... Be3 {[%clk 0:01:58.2]} 15. Qg3
{[%clk 0:00:34.4]} 15... f4 {[%clk 0:01:52.2]} 16. Qh4 {[%clk 0:00:29.1]} 16...
Qxh4 {[%clk 0:01:49.7]} 17. Nxh4 {[%clk 0:00:30]} 17... Nf2 {[%clk 0:01:48.3]}
18. Bd3 {[%clk 0:00:30.9]} 18... Nxd1 {[%clk 0:01:44.8]} 19. Rxd1 {[%clk
0:00:30.7]} 19... Kg8 {[%clk 0:01:41.3]} 20. Rf1 {[%clk 0:00:22.1]} 20... g5
{[%clk 0:01:37.5]} 21. Nf3 {[%clk 0:00:21.5]} 21... h6 {[%clk 0:01:36.2]} 22.
Ne2 {[%clk 0:00:14]} 22... c5 {[%clk 0:01:32.2]} 23. h4 {[%clk 0:00:08.3]} 23...
Bg4 {[%clk 0:01:21.5]} 24. hxg5 {[%clk 0:00:07.3]} 24... Bxf3 {[%clk 0:01:18.6]}
25. Rxf3 {[%clk 0:00:05]} 25... hxg5 {[%clk 0:01:18.4]} 26. Rh3 {[%clk
0:00:04.8]} 26... Re7 {[%clk 0:01:13.8]} 27. Rh6 {[%clk 0:00:04.4]} 27... Rd8
{[%clk 0:01:05.6]} 28. a4 {[%clk 0:00:03.6]} 28... Rg7 {[%clk 0:00:55]} 29. Nc3
{[%clk 0:00:03.6]} 29... g4 {[%clk 0:00:51.6]} 30. Ne4 {[%clk 0:00:03.9]} 30...
f3 {[%clk 0:00:47.1]} 31. gxf3 {[%clk 0:00:03.5]} 31... g3 {[%clk 0:00:42.7]}
0-1

[Event "*** Titled Tuesday Blitz"]
[Site "Chess.com"]
[Date "2020.12.29"]
[Round "3"]
[White "Witik"]
[Black "Bigfish1995"]
[Result "0-1"]
[WhiteElo "2711"]
[BlackElo "3007"]
[TimeControl "180+1"]
[EndTime "10:28:02 PST"]
[Termination "Bigfish1995 won by resignation"]

1. d4 {[%clk 0:02:59.8]} 1... Nf6 {[%clk 0:02:13.3]} 2. Bf4 {[%clk 0:02:58.8]}
2... c5 {[%clk 0:02:11.9]} 3. e3 {[%clk 0:02:58.3]} 3... Qb6 {[%clk 0:02:10.6]}
4. Nc3 {[%clk 0:02:57.6]} 4... d6 {[%clk 0:02:07.5]} 5. Bb5+ {[%clk 0:02:53.4]}
5... Bd7 {[%clk 0:02:02.6]} 6. a4 {[%clk 0:02:52.9]} 6... Qa5 {[%clk 0:01:35.5]}
7. Nf3 {[%clk 0:02:09.1]} 7... a6 {[%clk 0:01:12.3]} 8. Bxd7+ {[%clk 0:01:15.1]}
8... Nbxd7 {[%clk 0:01:11.8]} 9. O-O {[%clk 0:01:16]} 9... g6 {[%clk 0:01:10.4]}
10. dxc5 {[%clk 0:01:07.5]} 10... Qxc5 {[%clk 0:01:09.2]} 11. Qd4 {[%clk
0:00:56.7]} 11... Qc6 {[%clk 0:01:06.8]} 12. e4 {[%clk 0:00:45.1]} 12... e5
{[%clk 0:01:03.3]} 13. Bxe5 {[%clk 0:00:42]} 13... dxe5 {[%clk 0:01:03.6]} 14.
Nxe5 {[%clk 0:00:42.5]} 14... Qc5 {[%clk 0:01:01.8]} 15. Qxc5 {[%clk 0:00:35.8]}
15... Bxc5 {[%clk 0:01:02.7]} 16. Nf3 {[%clk 0:00:28.6]} 16... O-O-O {[%clk
0:00:56.6]} 17. h3 {[%clk 0:00:20.3]} 17... Rhe8 {[%clk 0:00:55.7]} 18. Rfe1
{[%clk 0:00:20.3]} 18... Ne5 {[%clk 0:00:54.8]} 19. Nxe5 {[%clk 0:00:20.2]}
19... Rxe5 {[%clk 0:00:55.7]} 20. Re2 {[%clk 0:00:20.7]} 20... Bd4 {[%clk
0:00:54.5]} 21. Rae1 {[%clk 0:00:20.3]} 21... Bxc3 {[%clk 0:00:51.5]} 22. bxc3
{[%clk 0:00:20.4]} 22... Rde8 {[%clk 0:00:52.2]} 23. f3 {[%clk 0:00:20.2]} 23...
Rc5 {[%clk 0:00:52.8]} 24. Re3 {[%clk 0:00:20.4]} 24... Re6 {[%clk 0:00:53.5]}
25. Rd1 {[%clk 0:00:19.7]} 25... Rec6 {[%clk 0:00:48.2]} 26. Red3 {[%clk
0:00:19.5]} 26... Kb8 {[%clk 0:00:46.1]} 27. Rd8+ {[%clk 0:00:19.3]} 27... Rc8
{[%clk 0:00:46.4]} 28. R8d6 {[%clk 0:00:19.1]} 28... R5c6 {[%clk 0:00:46.8]} 29.
e5 {[%clk 0:00:18.7]} 29... Rxd6 {[%clk 0:00:44.9]} 30. Rxd6 {[%clk 0:00:18.5]}
30... Nh5 {[%clk 0:00:45.5]} 31. Rd7 {[%clk 0:00:13.6]} 31... Rc7 {[%clk
0:00:45]} 32. Rd8+ {[%clk 0:00:14.1]} 32... Ka7 {[%clk 0:00:45.3]} 33. Kf2
{[%clk 0:00:14.3]} 33... Nf4 {[%clk 0:00:44.6]} 34. h4 {[%clk 0:00:12.4]} 34...
h5 {[%clk 0:00:44.1]} 35. g3 {[%clk 0:00:12.5]} 35... Ne6 {[%clk 0:00:44.4]} 36.
Rd6 {[%clk 0:00:10.9]} 36... Rxc3 {[%clk 0:00:44]} 37. Rd7 {[%clk 0:00:11.2]}
37... Rxc2+ {[%clk 0:00:44.5]} 38. Ke3 {[%clk 0:00:11.4]} 38... Rc7 {[%clk
0:00:45.1]} 39. Rxc7 {[%clk 0:00:11.1]} 39... Nxc7 {[%clk 0:00:45.1]} 40. Kd4
{[%clk 0:00:11.2]} 40... Ne6+ {[%clk 0:00:44.3]} 0-1